Cogmind - Beta 14 @@@ ROGUE MODE // 2025.01.04 @ 17:46:05 Player: DuckBoy Result: Destroyed by BZ-5Y7(R) with Subdweller Machine Gun Performance ------------- Evolutions (0) 0 Regions Visited (2) 400 Robots Destroyed (30) 150 Value Destroyed (750) 750 Prototype IDs (13) 260 Alien Tech Used (0) 0 Bonus (-40) -40 TOTAL SCORE: 1520 Bonus ------- Friendly Fire -40 Cogmind --------- Core Integrity 0/250 Matter 271/300 Energy 185/200 System Corruption 0% Temperature Cool (20) Movement Treading (340) Ox2 Location -10/Subcaves Parts ------- > --- POWER (1) -------- Subdweller Power Source > --- PROPULSION (2) --- Light Treads Spiked Treads > --- UTILITY (2) ------ Disposable Heat Sink Huge Storage Unit > --- WEAPON (2) ------- Particle Cannon Particle Cannon > --- INVENTORY (25) --- Subdweller Power Source Cargo Legs Compact Wheel Compact Wheel Subdweller Monowheel Subdweller Monowheel Subdweller Monowheel Improved Heat Sink Huge Storage Unit Core Shielding Cobbler Unit EM Pulse Gun EM Pulse Gun EM Pulse Gun EM Pulse Gun Subdweller Laser Subdweller Laser Subdweller Laser Subdweller Machine Gun Battle Cannon Flamer Peak State ------------ > --- POWER ------------ Subdweller Power Source > --- PROPULSION ------- Light Treads Spiked Treads > --- UTILITY ---------- Improved Heat Sink Huge Storage Unit > --- WEAPON ----------- Particle Cannon Particle Cannon > --- INVENTORY -------- Subdweller Power Source Subdweller Power Source Cargo Legs Compact Wheel Compact Wheel Subdweller Monowheel Subdweller Monowheel Subdweller Monowheel Disposable Heat Sink Huge Storage Unit Core Shielding Cobbler Unit EM Pulse Gun EM Pulse Gun EM Pulse Gun EM Pulse Gun Subdweller Laser Subdweller Laser Subdweller Laser Particle Cannon Subdweller Machine Gun Battle Cannon Flamer [Rating: 18] Favorites ----------- Power Light Ion Engine Engine Light Ion Engine Propulsion Light Treads Treads Light Treads Wheel Compact Wheel Utility Huge Storage Unit Device Heat Sink Storage Huge Storage Unit Weapon Particle Cannon Energy Gun EM Pulse Gun Energy Cannon Particle Cannon Ballistic Gun Light Assault Rifle Special Weapon Flamer Build | -11 -10 -10 ------- Run | Yrd Mat Sub Slots Evolved . | . . . Power . | . . . Propulsion . | . . . Utility . | . . . Weapon . | . . . Parts Attached 37 | 7 7 23 Power 5 | 1 . 4 Engine 5 | 1 . 4 Core . | . . . Reactor . | . . . Propulsion 15 | 2 1 12 Treads 7 | . 1 6 Leg . | . . . Wheel 8 | 2 . 6 Hover . | . . . Flight . | . . . Utility 7 | 2 3 2 Device 4 | 1 1 2 Storage 3 | 1 2 . Processor . | . . . Hackware . | . . . Protection . | . . . Artifact . | . . . Weapon 10 | 2 3 5 Energy Gun 2 | . 2 . Energy Cannon 5 | . 1 4 Ballistic Gun 2 | 2 . . Ballistic Cannon . | . . . Launcher . | . . . Special Weapon 1 | . . 1 Impact Weapon . | . . . Slashing Weapon . | . . . Piercing Weapon . | . . . Special Melee Weapon . | . . . Unidentified Prototypes . | . . . Parts Lost 6 | . . 6 Power 1 | . . 1 Propulsion 2 | . . 2 Utility 1 | . . 1 Weapon 2 | . . 2 Highest Loss Streak 3 | . . 3 To Critical Strikes . | . . . Average Slot Usage (%) 99 | . 100 99 Engine 13 | . 14 13 Treads 17 | . 11 19 Wheel 10 | . 16 8 Device 14 | . 14 14 Storage 14 | . 14 14 Energy Gun 7 | . 10 6 Energy Cannon 14 | . 7 18 Ballistic Gun 3 | . 10 . Special Weapon 2 | . . 3 Peak Build Rating 18 | 9 12 18 Average Rating 12 | 5 10 13 On Entrance 6 | . 9 11 Naked Turns . | . . . Heaviest Build 94 | 12 90 94 Greatest Support 40 | 26 26 40 Greatest Overweight (x) 5 | . 5 5 Average Overweight (x) 3 | . 4 3 Largest Inventory Capacity 25 | 8 25 25 Average Capacity 24 | 6 23 25 Most Carried 25 | 6 25 25 Average Carried 23 | 2 21 24 Final Capacity 25 | 8 25 25 Final Carried 25 | 6 25 23 Class Distribution -------------------- 86% | Mutant 13% | Scavenger-Mutant Dominant Class ---------------- Mutant | -10/Materials Mutant | -10/Subcaves Resources | -11 -10 -10 ----------- Run | Yrd Mat Sub Matter Collected 654 | 282 176 196 Remotely . | . . . Salvage Created 1188 | 112 601 475 Parts 80 | 10 39 31 Haulers Intercepted 2 | . 2 . Recyclers Shooed 1 | . 1 . Parts Field Recycled . | . . . Retrieved Matter . | . . . Parts Self-Destructed 17 | . . 17 Prevented . | . . . Kills | -11 -10 -10 ------- Run | Yrd Mat Sub Combat Hostiles Destroyed 19 | . 9 10 Guns 7 | . 6 1 Cannons 11 | . 2 9 AOE 1 | . 1 . Classes Destroyed 9 | 2 6 1 Worker 2 | . 2 . Tunneler 2 | 2 . . Hauler 2 | . 2 . Recycler 2 | 1 1 . Operator 1 | . 1 . Watcher 2 | . 2 . Swarmer 3 | . 3 . Grunt 6 | . 6 . Subdweller 10 | . . 10 Best Kill Streak 4 | 2 4 1 Combat Bots Only 3 | . 3 1 Max Kills in Single Turn 2 | 1 2 1 Gunslinging 1 | . 1 . Exploded 1 | . 1 . Melee . | . . . Uniques/NPCs Destroyed . | . . . Combat | -11 -10 -10 -------- Run | Yrd Mat Sub Hostile Shots Fired 88 | . 21 67 Missed 26 | . 4 22 Damage Taken 1293 | . 297 996 Core 257 | . 29 228 Absorbed by Shields . | . . . Core Remaining (%) 100 | 100 . . Volleys Fired 173 | 7 42 124 Largest 2 | 2 2 2 Hottest 140 | 40 108 140 Shots Fired 280 | 14 83 183 Gun 95 | 14 73 8 Cannon 184 | . 10 174 Launcher . | . . . Special 1 | . . 1 Kinetic 68 | 14 54 . Thermal 193 | . 18 175 Explosive . | . . . Electromagnetic 19 | . 11 8 Robot Hit Streak 13 | 4 13 12 Robot Miss Streak 3 | 3 3 2 Penetration Max . | . . . Secondary Targets 2 | . 2 . Max Gunslinging Chain 1 | . 1 . Shots Hit Robots 122 | 7 57 58 Core Hits 50 | 5 27 18 Critical Kills . | . . . Critical Parts Destroyed 1 | . 1 . Critical Strikes 1 | . 1 . Destroy 1 | . 1 . Melee Attacks . | . . . Impact . | . . . Slashing . | . . . Piercing . | . . . Sneak Attacks . | . . . Combat Hostiles . | . . . Follow-up Attacks . | . . . Damage Inflicted 1874 | 77 717 1080 Guns 634 | 77 545 12 Cannons 1191 | . 123 1068 Explosions 49 | . 49 . Melee . | . . . Ramming . | . . . Kinetic 461 | 77 384 . Thermal 1307 | . 239 1068 Explosive . | . . . Electromagnetic 106 | . 94 12 Impact . | . . . Slashing . | . . . Piercing . | . . . Highest Corruption . | . . . Average Corruption . | . . . Corruption Purged . | . . . Corruption Blocked . | . . . Overload Shots . | . . . Overflow Damage . | . . . Projectiles . | . . . Explosions . | . . . Melee . | . . . Knockbacks . | . . . Impact . | . . . Kinetic . | . . . Secondary . | . . . Self-Inflicted Damage 53 | . 53 . Shots 1 | . 1 . Rammed . | . . . Targets Rammed . | . . . Kicked . | . . . Crushed . | . . . Highest Temperature 280 | . 75 280 Average Temperature 50 | . 21 86 Received Heat Transfer 882 | . 108 774 Siege Activations . | . . . Robots Corrupted . | . . . Combat Hostiles . | . . . Parts Fried 1 | . 1 . Impact Corruptions . | . . . Robots Melted . | . . . Combat Hostiles . | . . . Parts Melted 1 | . . 1 Heat Transferred 2296 | . 372 1924 Parts Sabotaged . | . . . Parts Stolen . | . . . Parts Stripped . | . . . Power Chain Reactions 1 | . 1 . Alert | -11 -10 -10 ------- Run | Yrd Mat Sub Peak Influence 188 | 15 188 . Initial 9 | . 9 . Average 79 | 5 84 . Maximum Alert Level . | . . . Low Security (%) 100 | 100 100 . Level 1 . | . . . Level 2 . | . . . Level 3 . | . . . Level 4 . | . . . Level 5 . | . . . High Security . | . . . Max Security . | . . . Squads Dispatched 1 | . 1 . Investigation 1 | . 1 . Extermination . | . . . Reinforcement . | . . . Assault . | . . . Garrison . | . . . Intercept . | . . . Searches Triggered . | . . . Construction Impeded . | . . . Haulers Reinforced . | . . . Active Scanning Responses . | . . . Cargo Convoy Interrupts . | . . . Stealth | -11 -10 -10 --------- Run | Yrd Mat Sub Distress Signals . | . . . Communications Jammed . | . . . Distress Signals . | . . . Times Spotted 27 | . 15 12 Peak Tracking Total 4 | . 4 2 Tactical Retreats . | . . . Traps | -11 -10 -10 ------- Run | Yrd Mat Sub Traps Triggered 1 | . 1 . Indirectly . | . . . Trap Hack Attempts . | . . . Triggered . | . . . Disarmed . | . . . Reprogrammed . | . . . Reused . | . . . Traps Extracted . | . . . Installed 1 | . . 1 Triggered . | . . . Machines | -11 -10 -10 ---------- Run | Yrd Mat Sub Machines Disabled 2 | . 1 1 Max in Single Turn 1 | . 1 1 Machines Repaired . | . . . Machines Dismantled . | . . . Machines Sabotaged . | . . . Overloaded Fab Kills . | . . . Hacking | -11 -10 -10 --------- Run | Yrd Mat Sub Machines Accessed 11 | . 9 2 Terminals 8 | . 8 . Fabricators . | . . . Repair Stations 1 | . 1 . Recycling Units . | . . . Scanalyzers . | . . . Garrison Access . | . . . Total Hacks 35 | . 22 13 Successful 26 | . 13 13 Failed 9 | . 9 . Catastrophic 2 | . 2 . Database Lockouts . | . . . Manual 6 | . 5 1 Terminals 21 | . 21 . Fabricators . | . . . Repair Stations 1 | . 1 . Recycling Units . | . . . Scanalyzers . | . . . Garrison Access . | . . . Terminal Hacks 24 | . 11 13 Record 13 | . 1 12 Robot Analysis 1 | . 1 . Prototype ID Bank 1 | . 1 . Branch Access Points 1 | . 1 . Emergency Access Points 1 | . 1 . Locate Traps 3 | . 3 . Maintenance Status 1 | . 1 . Hauler Manifests 1 | . 1 . Zone Layout 1 | . 1 . Derelict Proto ID Bank 1 | . . 1 Fabricator Hacks . | . . . Repair Station Hacks . | . . . Recycling Unit Hacks . | . . . Scanalyzer . | . . . Garrison Access Hacks . | . . . Unauthorized Hacks 2 | . 2 . Terminals 2 | . 2 . Botnet 1 | . 1 . Operators 1 | . 1 . Fabricators . | . . . Repair Stations . | . . . Recycling Units . | . . . Scanalyzers . | . . . Garrison Access . | . . . Data Cores Recovered 1 | . 1 . Used . | . . . Hacking Detections 7 | . 7 . Full Trace Events 3 | . 3 . Feedback Events . | . . . Feedback Blocked . | . . . Robot Schematics Acquired . | . . . Robots Built . | . . . Authchips . | . . . Time . | . . . Total Robot Build Rating . | . . . Part Schematics Acquired . | . . . Parts Built . | . . . Authchips . | . . . Time . | . . . Total Part Build Rating . | . . . Parts Repaired . | . . . Time . | . . . Parts Recycled . | . . . Recycled Matter . | . . . Retrieved Matter . | . . . Retrieved Components . | . . . Parts Scanalyzed . | . . . Part Schematics Acquired . | . . . Parts Damaged . | . . . Bothacking | -11 -10 -10 ------------ Run | Yrd Mat Sub Used RIF Installer . | . . . Robots Hacked . | . . . Non-combat . | . . . Combat . | . . . Robot Hacks Applied . | . . . Relay Couplers Released . | . . . Fabnet Peak Effective % . | . . . Robots Rewired . | . . . Allies Hacked . | . . . Hacks Repelled . | . . . Allies | -11 -10 -10 -------- Run | Yrd Mat Sub Total Allies . | . . . Largest Group . | . . . Highest-Rated Group . | . . . Highest-Rated Ally . | . . . Total Orders . | . . . Ally Attacks . | . . . Total Damage . | . . . Kills . | . . . Allies Corrupted . | . . . Allies Melted . | . . . Intel | -11 -10 -10 ------- Run | Yrd Mat Sub Robot Analysis Total 1 | . 1 . Derelict Logs Recovered 2 | . . 2 Drone Launches . | . . . Drone Recoveries . | . . . Exploration | -11 -10 -10 ------------- Run | Yrd Mat Sub Turns Passed 4334 | 83 1317 2934 Spaces Moved 1957 | 53 687 1217 Core 2 | 2 . . Treads 319 | . . 319 Legs . | . . . Wheels 1636 | 51 687 898 Hover . | . . . Flight . | . . . Fastest Speed 50 | 50 90 150 Average Speed 186 | 88 158 206 Slowest Speed 340 | 90 175 340 Overloaded Moves . | . . . Propulsion Burnouts . | . . . Robots Hopped . | . . . Cave-ins Triggered . | . . . Exploration Rate (%) 58 | 4 91 79 Regions Visited 2 Branch Regions 1 Pre-discovered Areas 3 | . . 3 Known Exits Taken . | . . . Unknown Exits Taken 2 | 1 1 . Scrap Searched . | . . . Spaces Dug . | . . . Terrain Destroyed 5 | . 5 . Melee . | . . . Projectile . | . . . AOE 5 | . 5 . Terrain Rammed . | . . . Walls Destroyed . | . . . Machines Disabled . | . . . Actions | -11 -10 -10 --------- Run | Yrd Mat Sub Total 2375 | 73 837 1465 Wait 138 | . 74 64 Move 1955 | 52 686 1217 Hop . | . . . Pick Up 47 | 7 22 18 Fast Attach 8 | 6 1 1 Attach 8 | 1 . 7 Detach 1 | . 1 . Swap 21 | . 6 15 Drop 23 | . 5 18 Fire 173 | 7 42 124 Melee . | . . . Ram . | . . . Kick . | . . . Crush . | . . . Escape Stasis . | . . . Rewire . | . . . Trap 1 | . . 1 Miscellaneous . | . . . Route ------- -11/Scrapyard -10/Materials (discovered 6 exits: [*Mat x3] / *Min x2 / *Sub) -10/Subcaves (discovered 2 exits: [*Mat x2]) History --------- Turn | Location | Event 14 | -11/Scrapyard | Discovered new exit (range 16) 84 | -11/Scrapyard | Entered Materials 92 | -10/Materials | Identified exit to Mines 303 | -10/Materials | Build established: Mutant 485 | -10/Materials | Discovered new exit (range 11) 967 | -10/Materials | Discovered new exit (range 14) 1194 | -10/Materials | Discovered new exit (range 16) 1387 | -10/Materials | Discovered new exit (range 3) 1401 | -10/Materials | Entered Subcaves 1695 | -10/Subcaves | Shifting Twisted Machinery released Sub. Machine Gun 1711 | -10/Subcaves | Shifting Twisted Machinery released Flamer 2598 | -10/Subcaves | Visited Clippyterm 2603 | -10/Subcaves | Learned Research security intel 2685 | -10/Subcaves | Build established: Scavenger-Mutant 2805 | -10/Subcaves | Shifting Twisted Machinery released Spk. Treads 3017 | -10/Subcaves | Core integrity fell below 50% 3051 | -10/Subcaves | Lost 3 parts (1n1u1w) 3164 | -10/Subcaves | Shifting Twisted Machinery released Shrapnel Trap 3287 | -10/Subcaves | Build established: Mutant 3560 | -10/Subcaves | Learned location of Zion (-7) 3560 | -10/Subcaves | Met a Zionite searching for "candidates" 3633 | -10/Subcaves | A swath of the cavern ceiling suddenly collapsed 3863 | -10/Subcaves | Discovered new exit (range 7) 3941 | -10/Subcaves | Discovered new exit (range 4) 4116 | -10/Subcaves | Visited 4L-MR0's lab 4146 | -10/Subcaves | Found Cargo Legs 4326 | -10/Subcaves | Core integrity fell below 20% 4335 | -10/Subcaves | Destroyed by BZ-5Y7(R) with Subdweller Machine Gun Last Messages --------------- of a switch. Also why would anyone want that. >>Record! "Uberlauncher" I hear [REDACTED] exploded during the installation process. I did warn them to fully install it before trying to fire, and something tells me that's where things went wrong. Still I'm glad they didn't listen, that way I'm not culpable for whatever they would've done with it. If we're lucky even some of the others got blasted, too. 04135_ Testing Chamber breached. 04138_ 4L-MR0 mumbles: "I'm surprised some of them are even willing to come in here given their fear of my usual visitors." 04145_ Dropped Wheel. 04146_ Acquired Cargo Legs. 04167_ 4L-MR0 mumbles: "Who knows where that last prototype ended up, probably tossed aside somewhere as if it were useless junk..." 04237_ Sub. Power Source shoots sparks and powers down. 04255_ Dropped Broken Sub. Power Source. 04302_ Critical hit (Meltdown: +280). 04306_ 4O-VPG(R) destroyed. 04311_ Acquired 36 matter. 04327_ Particle Cannon destroyed. Map ----- +----------------------------------------------------+ | ??#"" "" """ ## ### ###?????????????? | | ??#" "" ## ## ####???????????????? | | ????#"" ##" # ##?????????????????? | | ???###+##### ## #???????????????? | | ???#" "#?# #" ## #???????????????? | | ???#" "#?# ##?### #???????????????? | | ???# ""#?# ##????## #???????????????? | | ???# X"#?# #"" ##??????####???????????????? | | ???#= ""#?#####" #?????????????????????????? | | ???#=#""#?????# ###???????????????????????? | | ???# #""#?????## ###?????????????????????? | | ???######??????# ##????????????????????? | | ???????????????# #????????????????????? | | ???????????????### #????????????????????? | | ?????????????????# ##????????????????????? | | ?????????????????# #?????????????????????? | | ?????????????????## * #?????????????????????? | | ??????????????????### #?????????????????????? | | ???????????????????# ##????????????????????? | | ???????????????????##] #????????????????????? | | ????????????????????# [##????????????????????? | | ???????????????????##"" #????????????????????? | | ???????????????????#""" #????????????????????? | | ???????????????????##"" #????????????????????? | | ???????????????????# " ##????????????????????? | | ?????????????????# #@ #????????????????????? | | ?????????????????# #????????????????????? | | ?????????????????# ???????????????????? | | ?????????????????# ?????????????????? | | ?????????????????# "???????????????? | | ?????????????????# ## """?????????????? | | ????????????????? " " #?# "#??????????????? | | ????????????????#"" " ??#" #??????????????? | | ???????????????? ""R " ???" #??????????????? | | ???????????????#"" ???##??????????????? | | ?????????????????? ???????????????????? | | ?????????????????# ? ???????????????????? | | ?????????????????# ? ??????????????????? | | ?????????????????# ?## #??????????????????? | | ?????????????????## ????##???????????????????? | | ??????????????????? ?????????????????????????? | | ?????????????????????????????????????????????? | | ?????????????????????????????????????????????? | | ?????????????????????????????????????????????? | | ?????????????????????????????????????????????? | | ?????????????????????????????????????????????? | | ?????????????????????????????????????????????? | | ?????????????????????????????????????????????? | | ?????????????????????????????????????????????? | | ??????????????????###????????????????????????? | +----------------------------------------------------+ Best States ------------- Heat Dissipation 39 Coolant Potential 50 Energy Generation 15 Energy Capacity 200 Matter Stores 300 Matter Capacity 300 Sight Range 16 Terrain Scan Range 16 Terrain Scan Density 10 Evasion (%) 42 Recoil Reduction 2 Item Schematics ----------------- None Robot Schematics ------------------ None Fabricated ------------ Nothing Alien Tech Used ----------------- None Achievements -------------- None Challenges ------------ None Game ------ Seed HybridLobotomyReplica Manual? 0 Play Time 00:36:37 Cumulative 446.2 hours Start 2025.01.04 @ 17:06:29 End 2025.01.04 @ 17:46:05 Sessions 1 Manual Loads 0 Difficulty Rogue Special Mode None Game No. 279 Rogue 276 Adventurer 3 Explorer 0 Win Type - Total 8 Types 7/0/1/0/0/0/0/0/0 Lore% 45 Gallery% 73 Achievement% 67 Wizard Run 0 Options --------- Layout 0 ASCII 0 Keyboard 0 Movement Numpad Keybinds 0 Fullscreen 1 Font 18/SmallcapsGlow Map View 76x50 Zoom Use 0% Tactical HUD 1 Map Filters NONE Filters NONE Steam 1 RUN: d8286889-bbfb-429f-a3cc-7595832fe977